[Event "Titled Tuesday Blitz April 25 Early 2023"]
[White "Gonzalez Zamora, Juan Carlos"]
[Black "Albornoz Cabrera, Carlos Daniel"]
[WhiteFideId "3507548"]
[BlackFideId "3518736"]
[WhiteElo "2535"]
[BlackElo "2516"]
[Result "1/2-1/2"]
[Round "04"]
[TimeControl "180+2"]
[Date "2023.04.25"]
[WhiteClock "0:00:11"]
[BlackClock "0:00:46"]

1. e4 {[%clk 0:03:00]}  c6 {[%clk 0:02:59]} 2. d4 {[%clk 0:03:00]}  d5 {[%clk 0:02:59]} 3. exd5 {[%clk 0:03:00]}  cxd5 {[%clk 0:02:59]} 4. c4 {[%clk 0:03:01]}  Nf6 {[%clk 0:02:59]} 5. Nc3 {[%clk 0:03:01]}  g6 {[%clk 0:02:59]} 6. Nf3 {[%clk 0:03:01]}  Bg7 {[%clk 0:02:59]} 7. Bg5 {[%clk 0:02:57]}  dxc4 {[%clk 0:02:58]} 8. Bxc4 {[%clk 0:02:57]}  O-O {[%clk 0:02:59]} 9. h3 {[%clk 0:02:54]}  h6 {[%clk 0:02:58]} 10. Be3 {[%clk 0:02:49]}  Nc6 {[%clk 0:02:58]} 11. O-O {[%clk 0:02:49]}  Bf5 {[%clk 0:02:56]} 12. Qd2 {[%clk 0:02:48]}  Kh7 {[%clk 0:02:55]} 13. Rfd1 {[%clk 0:02:41]}  Ne4 {[%clk 0:02:55]} 14. Nxe4 {[%clk 0:02:40]}  Bxe4 {[%clk 0:02:56]} 15. Qe2 {[%clk 0:02:14]}  Rc8 {[%clk 0:02:51]} 16. Rac1 {[%clk 0:02:10]}  Bd5 {[%clk 0:02:48]} 17. b3 {[%clk 0:02:02]}  e6 {[%clk 0:02:46]} 18. Bxd5 {[%clk 0:01:54]}  exd5 {[%clk 0:02:41]} 19. Qb5 {[%clk 0:01:51]}  Qd7 {[%clk 0:02:41]} 20. Rc5 {[%clk 0:01:49]}  Rcd8 {[%clk 0:02:41]} 21. Rdc1 {[%clk 0:01:43]}  Rfe8 {[%clk 0:02:41]} 22. Qd3 {[%clk 0:01:28]}  Re4 {[%clk 0:02:38]} 23. Nd2 {[%clk 0:01:24]}  Re6 {[%clk 0:02:38]} 24. Nf3 {[%clk 0:01:04]}  f5 {[%clk 0:02:38]} 25. Bd2 {[%clk 0:00:51]}  Re4 {[%clk 0:02:36]} 26. Ne5 {[%clk 0:00:36]}  Bxe5 {[%clk 0:02:00]} 27. dxe5 {[%clk 0:00:34]}  Qe6 {[%clk 0:02:01]} 28. f4 {[%clk 0:00:30]}  g5 {[%clk 0:01:56]} 29. fxg5 {[%clk 0:00:28]}  hxg5 {[%clk 0:01:56]} 30. Bxg5 {[%clk 0:00:23]}  Rg8 {[%clk 0:01:56]} 31. h4 {[%clk 0:00:22]}  Rxe5 {[%clk 0:01:52]} 32. b4 {[%clk 0:00:18]}  a6 {[%clk 0:01:37]} 33. b5 {[%clk 0:00:17]}  axb5 {[%clk 0:01:28]} 34. Rxb5 {[%clk 0:00:17]}  Rg7 {[%clk 0:01:29]} 35. Rcb1 {[%clk 0:00:17]}  d4 {[%clk 0:01:17]} 36. Rxe5 {[%clk 0:00:15]}  Qxe5 {[%clk 0:01:17]} 37. Qf3 {[%clk 0:00:14]}  Kg6 {[%clk 0:01:12]} 38. Rf1 {[%clk 0:00:13]}  Qe4 {[%clk 0:01:04]} 39. Qb3 {[%clk 0:00:12]}  d3 {[%clk 0:01:00]} 40. Rd1 {[%clk 0:00:10]}  Nd4 {[%clk 0:00:54]} 41. Qxd3 {[%clk 0:00:09]}  Ne2+ {[%clk 0:00:54]} 42. Kh1 {[%clk 0:00:08]}  Kh5 {[%clk 0:00:40]} 43. Qxe4 {[%clk 0:00:07]}  fxe4 {[%clk 0:00:41]} 44. Re1 {[%clk 0:00:07]}  Nc3 {[%clk 0:00:41]} 45. Re3 {[%clk 0:00:07]}  Rc7 {[%clk 0:00:40]} 46. Bf4 {[%clk 0:00:06]}  Rc6 {[%clk 0:00:38]} 47. Be5 {[%clk 0:00:06]}  Nxa2 {[%clk 0:00:35]} 48. Rxe4 {[%clk 0:00:06]}  Re6 {[%clk 0:00:29]} 49. Re3 {[%clk 0:00:06]}  Nb4 {[%clk 0:00:28]} 50. Bf4 {[%clk 0:00:05]}  Rxe3 {[%clk 0:00:28]} 51. Bxe3 {[%clk 0:00:06]}  Kxh4 {[%clk 0:00:29]} 52. Kh2 {[%clk 0:00:06]}  Kg4 {[%clk 0:00:30]} 53. Bb6 {[%clk 0:00:06]}  Nd5 {[%clk 0:00:29]} 54. Bc5 {[%clk 0:00:06]}  b5 {[%clk 0:00:30]} 55. g3 {[%clk 0:00:05]}  Nf6 {[%clk 0:00:29]} 56. Kg2 {[%clk 0:00:05]}  Ne4 {[%clk 0:00:30]} 57. Bf8 {[%clk 0:00:05]}  Nxg3 {[%clk 0:00:30]} 58. Kf2 {[%clk 0:00:04]}  Nf5 {[%clk 0:00:30]} 59. Ba3 {[%clk 0:00:03]}  Kf4 {[%clk 0:00:30]} 60. Ke2 {[%clk 0:00:04]}  Ke4 {[%clk 0:00:31]} 61. Kd2 {[%clk 0:00:04]}  Kd4 {[%clk 0:00:31]} 62. Kc2 {[%clk 0:00:04]}  Kc4 {[%clk 0:00:32]} 63. Kb2 {[%clk 0:00:05]}  Nd4 {[%clk 0:00:32]} 64. Bf8 {[%clk 0:00:06]}  Nc6 {[%clk 0:00:32]} 65. Ba3 {[%clk 0:00:06]}  Nb4 {[%clk 0:00:32]} 66. Kb1 {[%clk 0:00:04]}  Kb3 {[%clk 0:00:32]} 67. Bxb4 {[%clk 0:00:04]}  Kxb4 {[%clk 0:00:32]} 68. Kb2 {[%clk 0:00:05]}  Kc4 {[%clk 0:00:33]} 69. Kc2 {[%clk 0:00:05]}  Kb4 {[%clk 0:00:34]} 70. Kb2 {[%clk 0:00:06]}  Kc5 {[%clk 0:00:34]} 71. Kc3 {[%clk 0:00:05]}  Kb6 {[%clk 0:00:35]} 72. Kb3 {[%clk 0:00:04]}  Ka5 {[%clk 0:00:35]} 73. Ka3 {[%clk 0:00:04]}  b4+ {[%clk 0:00:36]} 74. Kb3 {[%clk 0:00:05]}  Kb5 {[%clk 0:00:36]} 75. Kb2 {[%clk 0:00:05]}  Kc5 {[%clk 0:00:37]} 76. Kb3 {[%clk 0:00:05]}  Kb5 {[%clk 0:00:38]} 77. Kb2 {[%clk 0:00:06]}  Kc4 {[%clk 0:00:39]} 78. Kc2 {[%clk 0:00:06]}  Kd5 {[%clk 0:00:39]} 79. Kb3 {[%clk 0:00:06]}  Kc5 {[%clk 0:00:40]} 80. Kb2 {[%clk 0:00:07]}  Kc4 {[%clk 0:00:41]} 81. Kc2 {[%clk 0:00:07]}  b3+ {[%clk 0:00:42]} 82. Kb2 {[%clk 0:00:07]}  Kb4 {[%clk 0:00:42]} 83. Kb1 {[%clk 0:00:08]}  Ka4 {[%clk 0:00:42]} 84. Kb2 {[%clk 0:00:08]}  Kb4 {[%clk 0:00:43]} 85. Kb1 {[%clk 0:00:09]}  Kc3 {[%clk 0:00:44]} 86. Kc1 {[%clk 0:00:09]}  Kd4 {[%clk 0:00:44]} 87. Kb2 {[%clk 0:00:09]}  Kc4 {[%clk 0:00:45]} 88. Kb1 {[%clk 0:00:09]}  Kb4 {[%clk 0:00:45]} 89. Kb2 {[%clk 0:00:10]}  Ka4 {[%clk 0:00:44]} 90. Kb1 {[%clk 0:00:10]}  Ka3 {[%clk 0:00:45]} 91. Ka1 {[%clk 0:00:11]}  b2+ {[%clk 0:00:46]} 92. Kb1 {[%clk 0:00:11]}  Kb3 {[%clk 0:00:46]} 1/2-1/2


[Site "https://www.chess.com"]

[Event "Titled Tuesday Blitz April 25 Early 2023"]
[White "Liu, Xiangyi"]
[Black "Toktomushev, Teimur"]
[WhiteFideId "8605718"]
[BlackFideId "14176726"]
[WhiteElo "2323"]
[BlackElo "2116"]
[Result "1-0"]
[Round "04"]
[TimeControl "180+2"]
[Date "2023.04.25"]
[WhiteClock "0:00:22"]
[BlackClock "0:00:02"]

1. Nf3 {[%clk 0:03:00]}  d5 {[%clk 0:02:56]} 2. c4 {[%clk 0:02:58]}  e6 {[%clk 0:02:55]} 3. g3 {[%clk 0:02:53]}  Nf6 {[%clk 0:02:49]} 4. Bg2 {[%clk 0:02:53]}  Be7 {[%clk 0:02:50]} 5. O-O {[%clk 0:02:52]}  O-O {[%clk 0:02:50]} 6. d4 {[%clk 0:02:46]}  c6 {[%clk 0:02:49]} 7. Nc3 {[%clk 0:02:43]}  b6 {[%clk 0:02:48]} 8. Bf4 {[%clk 0:02:27]}  Ba6 {[%clk 0:02:44]} 9. cxd5 {[%clk 0:02:26]}  cxd5 {[%clk 0:02:45]} 10. Rc1 {[%clk 0:02:24]}  Nbd7 {[%clk 0:01:28]} 11. Qa4 {[%clk 0:01:25]}  Bb7 {[%clk 0:01:25]} 12. Nb5 {[%clk 0:01:25]}  a6 {[%clk 0:00:46]} 13. Nd6 {[%clk 0:01:24]}  Bxd6 {[%clk 0:00:43]} 14. Bxd6 {[%clk 0:01:24]}  Re8 {[%clk 0:00:44]} 15. Rc7 {[%clk 0:00:57]}  b5 {[%clk 0:00:08]} 16. Qa3 {[%clk 0:00:57]}  Rb8 {[%clk 0:00:05]} 17. Rfc1 {[%clk 0:00:27]}  Ne4 {[%clk 0:00:05]} 18. Bf4 {[%clk 0:00:26]}  f6 {[%clk 0:00:02]} 19. Nd2 {[%clk 0:00:23]}  Nb6 {[%clk 0:00:02]} 20. b3 {[%clk 0:00:21]}  Nxd2 {[%clk 0:00:02]} 21. Bxd2 {[%clk 0:00:22]} 1-0


[Site "https://www.chess.com"]

[Event "Titled Tuesday Blitz April 25 Early 2023"]
[White "Mazurkiewicz, Michal"]
[Black "Kvaloy, Aksel Bu"]
[WhiteFideId "1124943"]
[BlackFideId "1528815"]
[WhiteElo "2054"]
[BlackElo "2208"]
[Result "0-1"]
[Round "04"]
[TimeControl "180+2"]
[Date "2023.04.25"]
[WhiteClock "0:00:02"]
[BlackClock "0:00:42"]

1. e4 {[%clk 0:02:59]}  e5 {[%clk 0:02:58]} 2. Nf3 {[%clk 0:03:00]}  Nf6 {[%clk 0:02:59]} 3. d3 {[%clk 0:03:00]}  Nc6 {[%clk 0:02:57]} 4. g3 {[%clk 0:03:00]}  d5 {[%clk 0:02:56]} 5. exd5 {[%clk 0:03:01]}  Nxd5 {[%clk 0:02:56]} 6. Bg2 {[%clk 0:03:01]}  Be7 {[%clk 0:02:56]} 7. O-O {[%clk 0:03:01]}  O-O {[%clk 0:02:57]} 8. Nc3 {[%clk 0:03:02]}  Bg4 {[%clk 0:02:56]} 9. Nxd5 {[%clk 0:02:59]}  Qxd5 {[%clk 0:02:57]} 10. h3 {[%clk 0:02:58]}  Bh5 {[%clk 0:02:56]} 11. Re1 {[%clk 0:02:59]}  Qd6 {[%clk 0:02:53]} 12. g4 {[%clk 0:02:49]}  Bg6 {[%clk 0:02:53]} 13. Be3 {[%clk 0:02:42]}  f5 {[%clk 0:02:52]} 14. gxf5 {[%clk 0:02:38]}  Rxf5 {[%clk 0:02:50]} 15. Nd2 {[%clk 0:02:24]}  Bh5 {[%clk 0:02:47]} 16. Ne4 {[%clk 0:01:46]}  Qg6 {[%clk 0:02:39]} 17. Qd2 {[%clk 0:01:46]}  Bh4 {[%clk 0:02:34]} 18. Kh2 {[%clk 0:01:39]}  Bf3 {[%clk 0:02:26]} 19. Ng3 {[%clk 0:01:36]}  Bxg2 {[%clk 0:02:24]} 20. Kxg2 {[%clk 0:01:36]}  Raf8 {[%clk 0:02:23]} 21. Qe2 {[%clk 0:00:35]}  h5 {[%clk 0:02:08]} 22. Kh2 {[%clk 0:00:31]}  Rf3 {[%clk 0:02:07]} 23. Rg1 {[%clk 0:00:26]}  Nd4 {[%clk 0:02:06]} 24. Bxd4 {[%clk 0:00:26]}  exd4 {[%clk 0:02:07]} 25. Ne4 {[%clk 0:00:02]}  Qf5 {[%clk 0:01:33]} 26. Qf1 {[%clk 0:00:03]}  Kh7 {[%clk 0:01:24]} 27. Qg2 {[%clk 0:00:03]}  Qe5+ {[%clk 0:01:21]} 28. Kh1 {[%clk 0:00:03]}  Kh8 {[%clk 0:01:12]} 29. Raf1 {[%clk 0:00:03]}  R8f7 {[%clk 0:01:09]} 30. Qh2 {[%clk 0:00:04]}  Qe6 {[%clk 0:01:08]} 31. Qg2 {[%clk 0:00:04]}  Rxh3+ {[%clk 0:01:07]} 32. Qh2 {[%clk 0:00:03]}  Rxh2+ {[%clk 0:01:02]} 33. Kxh2 {[%clk 0:00:03]}  Qe5+ {[%clk 0:01:03]} 34. Kh3 {[%clk 0:00:03]}  Rf3+ {[%clk 0:00:57]} 35. Kg2 {[%clk 0:00:04]}  Rf4 {[%clk 0:00:55]} 36. f3 {[%clk 0:00:02]}  Be7 {[%clk 0:00:54]} 37. Rh1 {[%clk 0:00:03]}  h4 {[%clk 0:00:54]} 38. Rh3 {[%clk 0:00:03]}  g5 {[%clk 0:00:53]} 39. Rg1 {[%clk 0:00:03]}  Rxe4 {[%clk 0:00:53]} 40. dxe4 {[%clk 0:00:02]}  g4 {[%clk 0:00:52]} 41. fxg4 {[%clk 0:00:03]}  Qxe4+ {[%clk 0:00:52]} 42. Kf1 {[%clk 0:00:02]}  Bg5 {[%clk 0:00:51]} 43. Rh2 {[%clk 0:00:02]}  Be3 {[%clk 0:00:48]} 44. Rgg2 {[%clk 0:00:02]}  Qf3+ {[%clk 0:00:48]} 45. Ke1 {[%clk 0:00:03]}  h3 {[%clk 0:00:47]} 46. Re2 {[%clk 0:00:03]}  Qg3+ {[%clk 0:00:48]} 47. Kd1 {[%clk 0:00:03]}  Qg1+ {[%clk 0:00:47]} 48. Re1 {[%clk 0:00:03]}  Qxg4+ {[%clk 0:00:48]} 49. Rhe2 {[%clk 0:00:02]}  h2 {[%clk 0:00:44]} 50. c3 {[%clk 0:00:03]}  Qg1 {[%clk 0:00:42]} 51. Kc2 {[%clk 0:00:03]}  h1=Q {[%clk 0:00:41]} 52. Rxg1 {[%clk 0:00:03]}  Qxg1 {[%clk 0:00:42]} 53. cxd4 {[%clk 0:00:02]}  Qg6+ {[%clk 0:00:42]} 0-1


[Site "https://www.chess.com"]

[Event "Titled Tuesday Blitz April 25 Early 2023"]
[White "KRUMMEL2008"]
[Black "Gatterer, Florian"]
[BlackFideId "811688"]
[WhiteElo "2627"]
[BlackElo "2221"]
[Result "1-0"]
[Round "04"]
[TimeControl "180+2"]
[Date "2023.04.25"]
[WhiteClock "0:00:12"]
[BlackClock "0:00:38"]

1. e4 {[%clk 0:03:00]}  c5 {[%clk 0:02:59]} 2. Nf3 {[%clk 0:03:00]}  e6 {[%clk 0:02:59]} 3. g3 {[%clk 0:02:59]}  d5 {[%clk 0:02:58]} 4. exd5 {[%clk 0:03:00]}  exd5 {[%clk 0:02:59]} 5. d4 {[%clk 0:03:00]}  Nf6 {[%clk 0:02:59]} 6. Bg2 {[%clk 0:02:59]}  Nc6 {[%clk 0:02:59]} 7. O-O {[%clk 0:02:58]}  cxd4 {[%clk 0:02:59]} 8. Nxd4 {[%clk 0:02:58]}  Be7 {[%clk 0:03:00]} 9. Nc3 {[%clk 0:02:57]}  O-O {[%clk 0:02:58]} 10. Be3 {[%clk 0:02:50]}  h6 {[%clk 0:02:56]} 11. h3 {[%clk 0:02:49]}  Re8 {[%clk 0:02:56]} 12. Qd2 {[%clk 0:02:48]}  Bb4 {[%clk 0:02:52]} 13. a3 {[%clk 0:02:44]}  Ba5 {[%clk 0:02:46]} 14. Rad1 {[%clk 0:02:39]}  Ne4 {[%clk 0:02:35]} 15. Bxe4 {[%clk 0:02:33]}  dxe4 {[%clk 0:02:34]} 16. Nxc6 {[%clk 0:01:37]}  bxc6 {[%clk 0:02:25]} 17. Qxd8 {[%clk 0:01:33]}  Bxd8 {[%clk 0:02:17]} 18. Kh2 {[%clk 0:01:32]}  Bf5 {[%clk 0:01:51]} 19. Rd6 {[%clk 0:01:25]}  Bf6 {[%clk 0:01:35]} 20. Rxc6 {[%clk 0:01:19]}  Rec8 {[%clk 0:01:35]} 21. Rxf6 {[%clk 0:00:44]}  gxf6 {[%clk 0:01:30]} 22. Nd5 {[%clk 0:00:45]}  Kg7 {[%clk 0:00:57]} 23. Ne7 {[%clk 0:00:39]}  Rxc2 {[%clk 0:00:57]} 24. Nxf5+ {[%clk 0:00:39]}  Kg6 {[%clk 0:00:57]} 25. Ne7+ {[%clk 0:00:32]}  Kg7 {[%clk 0:00:57]} 26. Bd4 {[%clk 0:00:31]}  Rd8 {[%clk 0:00:54]} 27. Bc3 {[%clk 0:00:31]}  Rd7 {[%clk 0:00:52]} 28. Nf5+ {[%clk 0:00:30]}  Kg6 {[%clk 0:00:53]} 29. Ne3 {[%clk 0:00:29]}  Re2 {[%clk 0:00:53]} 30. Ng2 {[%clk 0:00:28]}  Rc2 {[%clk 0:00:47]} 31. Nf4+ {[%clk 0:00:27]}  Kf5 {[%clk 0:00:46]} 32. Ng2 {[%clk 0:00:22]}  Kg6 {[%clk 0:00:45]} 33. Kg1 {[%clk 0:00:22]}  a5 {[%clk 0:00:44]} 34. Re1 {[%clk 0:00:20]}  f5 {[%clk 0:00:44]} 35. Ne3 {[%clk 0:00:20]}  Rxc3 {[%clk 0:00:42]} 36. bxc3 {[%clk 0:00:21]}  Rd3 {[%clk 0:00:39]} 37. Rc1 {[%clk 0:00:21]}  h5 {[%clk 0:00:39]} 38. a4 {[%clk 0:00:21]}  h4 {[%clk 0:00:38]} 39. c4 {[%clk 0:00:21]}  hxg3 {[%clk 0:00:38]} 40. c5 {[%clk 0:00:20]}  gxf2+ {[%clk 0:00:38]} 41. Kxf2 {[%clk 0:00:21]}  f4 {[%clk 0:00:37]} 42. Ng4 {[%clk 0:00:19]}  Kf5 {[%clk 0:00:37]} 43. c6 {[%clk 0:00:19]}  Rd2+ {[%clk 0:00:37]} 44. Kg1 {[%clk 0:00:18]}  Rd8 {[%clk 0:00:37]} 45. c7 {[%clk 0:00:17]}  Rc8 {[%clk 0:00:35]} 46. Rc5+ {[%clk 0:00:14]}  Kg6 {[%clk 0:00:36]} 47. Ne5+ {[%clk 0:00:13]}  Kf6 {[%clk 0:00:36]} 48. Nc4 {[%clk 0:00:14]}  f3 {[%clk 0:00:34]} 49. Nb6 {[%clk 0:00:13]}  Rxc7 {[%clk 0:00:34]} 50. Rxc7 {[%clk 0:00:14]}  e3 {[%clk 0:00:34]} 51. Rc3 {[%clk 0:00:14]}  e2 {[%clk 0:00:34]} 52. Rxf3+ {[%clk 0:00:15]}  Kg5 {[%clk 0:00:34]} 53. Re3 {[%clk 0:00:15]}  Kh4 {[%clk 0:00:35]} 54. Rxe2 {[%clk 0:00:16]}  f5 {[%clk 0:00:36]} 55. Nd5 {[%clk 0:00:15]}  f4 {[%clk 0:00:37]} 56. Nxf4 {[%clk 0:00:15]}  Kg3 {[%clk 0:00:37]} 57. Rg2+ {[%clk 0:00:11]}  Kf3 {[%clk 0:00:35]} 58. h4 {[%clk 0:00:10]}  Ke4 {[%clk 0:00:35]} 59. h5 {[%clk 0:00:10]}  Kf3 {[%clk 0:00:36]} 60. h6 {[%clk 0:00:11]}  Ke4 {[%clk 0:00:37]} 61. h7 {[%clk 0:00:12]}  Kf3 {[%clk 0:00:38]} 62. h8=Q {[%clk 0:00:12]} 1-0


[Site "https://www.chess.com"]

[Event "Titled Tuesday Blitz April 25 Early 2023"]
[White "Kokoszczynski, Jan"]
[Black "Rangel, Daniel"]
[WhiteFideId "1174460"]
[BlackFideId "2124475"]
[WhiteElo "2139"]
[BlackElo "2256"]
[Result "0-1"]
[Round "04"]
[TimeControl "180+2"]
[Date "2023.04.25"]
[WhiteClock "0:00:03"]
[BlackClock "0:00:02"]

1. e4 {[%clk 0:02:57]}  c5 {[%clk 0:02:58]} 2. Nf3 {[%clk 0:02:56]}  g6 {[%clk 0:02:55]} 3. d4 {[%clk 0:02:55]}  cxd4 {[%clk 0:02:56]} 4. Qxd4 {[%clk 0:02:54]}  Nf6 {[%clk 0:02:55]} 5. e5 {[%clk 0:02:53]}  Nc6 {[%clk 0:02:55]} 6. Qa4 {[%clk 0:02:52]}  Nd5 {[%clk 0:02:54]} 7. Qb3 {[%clk 0:02:43]}  Nc7 {[%clk 0:02:51]} 8. Bc4 {[%clk 0:02:40]}  e6 {[%clk 0:02:49]} 9. Bg5 {[%clk 0:02:28]}  Be7 {[%clk 0:02:48]} 10. Bh6 {[%clk 0:02:21]}  b5 {[%clk 0:02:47]} 11. Be2 {[%clk 0:02:11]}  Rb8 {[%clk 0:02:32]} 12. Qe3 {[%clk 0:02:11]}  Nd5 {[%clk 0:02:27]} 13. Qd2 {[%clk 0:02:08]}  d6 {[%clk 0:02:16]} 14. exd6 {[%clk 0:02:04]}  Bf6 {[%clk 0:02:14]} 15. Nc3 {[%clk 0:01:57]}  Nxc3 {[%clk 0:02:09]} 16. bxc3 {[%clk 0:01:57]}  b4 {[%clk 0:02:09]} 17. O-O {[%clk 0:01:45]}  Bxc3 {[%clk 0:02:00]} 18. Qf4 {[%clk 0:01:44]}  e5 {[%clk 0:01:43]} 19. Qe4 {[%clk 0:01:24]}  Bxa1 {[%clk 0:00:57]} 20. Rxa1 {[%clk 0:01:25]}  Qxd6 {[%clk 0:00:57]} 21. Rd1 {[%clk 0:01:15]}  Qc7 {[%clk 0:00:50]} 22. Bg7 {[%clk 0:00:58]}  f5 {[%clk 0:00:40]} 23. Qc4 {[%clk 0:00:57]}  Qxg7 {[%clk 0:00:37]} 24. Qxc6+ {[%clk 0:00:57]}  Bd7 {[%clk 0:00:38]} 25. Qc7 {[%clk 0:00:29]}  Rc8 {[%clk 0:00:34]} 26. Qxa7 {[%clk 0:00:29]}  e4 {[%clk 0:00:28]} 27. Ng5 {[%clk 0:00:27]}  Qe7 {[%clk 0:00:23]} 28. Rxd7 {[%clk 0:00:18]}  Qxd7 {[%clk 0:00:19]} 29. Bb5 {[%clk 0:00:15]}  Rc6 {[%clk 0:00:09]} 30. Bxc6 {[%clk 0:00:09]}  Qxc6 {[%clk 0:00:08]} 31. Qb8+ {[%clk 0:00:10]}  Ke7 {[%clk 0:00:05]} 32. Qxh8 {[%clk 0:00:11]}  Qd5 {[%clk 0:00:04]} 33. h4 {[%clk 0:00:09]}  Qd1+ {[%clk 0:00:03]} 34. Kh2 {[%clk 0:00:09]}  Qd6+ {[%clk 0:00:03]} 35. g3 {[%clk 0:00:10]}  Qd2 {[%clk 0:00:04]} 36. Qe5+ {[%clk 0:00:10]}  Kd8 {[%clk 0:00:03]} 37. Ne6+ {[%clk 0:00:09]}  Kd7 {[%clk 0:00:04]} 38. Nf8+ {[%clk 0:00:09]}  Kc6 {[%clk 0:00:04]} 39. Qf4 {[%clk 0:00:07]}  Qxc2 {[%clk 0:00:03]} 40. Nxh7 {[%clk 0:00:07]}  Qxa2 {[%clk 0:00:03]} 41. Nf8 {[%clk 0:00:06]}  b3 {[%clk 0:00:03]} 42. Ne6 {[%clk 0:00:02]}  b2 {[%clk 0:00:03]} 43. Qc7+ {[%clk 0:00:03]}  Kd5 {[%clk 0:00:02]} 44. Nf4+ {[%clk 0:00:03]}  Kd4 {[%clk 0:00:02]} 0-1


[Site "https://www.chess.com"]

[Event "Titled Tuesday Blitz April 25 Early 2023"]
[White "Koutsin, Sergey"]
[Black "Bodnaruk, Anastasia"]
[WhiteFideId "14101483"]
[BlackFideId "4181751"]
[WhiteElo "2381"]
[BlackElo "2310"]
[Result "1-0"]
[Round "04"]
[TimeControl "180+2"]
[Date "2023.04.25"]
[WhiteClock "0:00:10"]
[BlackClock "0:00:03"]

1. d4 {[%clk 0:02:57]}  Nf6 {[%clk 0:02:59]} 2. c4 {[%clk 0:02:56]}  g6 {[%clk 0:03:00]} 3. Nc3 {[%clk 0:02:56]}  Bg7 {[%clk 0:03:00]} 4. e4 {[%clk 0:02:55]}  d6 {[%clk 0:03:01]} 5. Nf3 {[%clk 0:02:55]}  O-O {[%clk 0:03:01]} 6. Be2 {[%clk 0:02:56]}  e5 {[%clk 0:03:02]} 7. O-O {[%clk 0:02:55]}  Nc6 {[%clk 0:03:02]} 8. d5 {[%clk 0:02:55]}  Ne7 {[%clk 0:03:02]} 9. Ne1 {[%clk 0:02:55]}  Nd7 {[%clk 0:03:02]} 10. Be3 {[%clk 0:02:56]}  f5 {[%clk 0:03:02]} 11. f3 {[%clk 0:02:57]}  f4 {[%clk 0:03:02]} 12. Bf2 {[%clk 0:02:57]}  g5 {[%clk 0:03:00]} 13. a4 {[%clk 0:02:58]}  a5 {[%clk 0:03:00]} 14. Nd3 {[%clk 0:02:57]}  b6 {[%clk 0:02:59]} 15. b4 {[%clk 0:02:57]}  axb4 {[%clk 0:02:58]} 16. Nxb4 {[%clk 0:02:58]}  Nc5 {[%clk 0:02:57]} 17. Nc6 {[%clk 0:02:58]}  Nxc6 {[%clk 0:02:53]} 18. dxc6 {[%clk 0:02:59]}  Ne6 {[%clk 0:02:41]} 19. Nd5 {[%clk 0:02:43]}  h5 {[%clk 0:02:37]} 20. a5 {[%clk 0:02:39]}  bxa5 {[%clk 0:02:35]} 21. Be1 {[%clk 0:02:39]}  Ra6 {[%clk 0:01:48]} 22. Rxa5 {[%clk 0:01:46]}  Rxc6 {[%clk 0:01:47]} 23. Ra8 {[%clk 0:00:37]}  Re8 {[%clk 0:01:46]} 24. Ba5 {[%clk 0:00:17]}  Ra6 {[%clk 0:01:30]} 25. Rxa6 {[%clk 0:00:10]}  Bxa6 {[%clk 0:01:31]} 26. Qa4 {[%clk 0:00:11]}  Kf8 {[%clk 0:00:47]} 27. Ra1 {[%clk 0:00:09]}  Bb7 {[%clk 0:00:41]} 28. Qb5 {[%clk 0:00:07]}  Qc8 {[%clk 0:00:37]} 29. Bf1 {[%clk 0:00:06]}  c6 {[%clk 0:00:34]} 30. Qb4 {[%clk 0:00:07]}  cxd5 {[%clk 0:00:33]} 31. Qxd6+ {[%clk 0:00:07]}  Kg8 {[%clk 0:00:32]} 32. cxd5 {[%clk 0:00:08]}  Qc5+ {[%clk 0:00:19]} 33. Qxc5 {[%clk 0:00:07]}  Nxc5 {[%clk 0:00:19]} 34. Bb6 {[%clk 0:00:08]}  Bf8 {[%clk 0:00:20]} 35. Ra7 {[%clk 0:00:07]}  Ra8 {[%clk 0:00:19]} 36. Rxa8 {[%clk 0:00:05]}  Bxa8 {[%clk 0:00:19]} 37. Bb5 {[%clk 0:00:05]}  Bb7 {[%clk 0:00:16]} 38. Bc7 {[%clk 0:00:06]}  Ba6 {[%clk 0:00:13]} 39. Bxa6 {[%clk 0:00:05]}  Nxa6 {[%clk 0:00:13]} 40. Bxe5 {[%clk 0:00:06]}  Be7 {[%clk 0:00:13]} 41. g3 {[%clk 0:00:06]}  fxg3 {[%clk 0:00:12]} 42. hxg3 {[%clk 0:00:07]}  Nc5 {[%clk 0:00:12]} 43. Bd4 {[%clk 0:00:05]}  Nd3 {[%clk 0:00:11]} 44. Kg2 {[%clk 0:00:05]}  Bd6 {[%clk 0:00:11]} 45. Be3 {[%clk 0:00:05]}  g4 {[%clk 0:00:10]} 46. f4 {[%clk 0:00:05]}  Kf7 {[%clk 0:00:04]} 47. e5 {[%clk 0:00:05]}  Bf8 {[%clk 0:00:04]} 48. Bd2 {[%clk 0:00:04]}  Bc5 {[%clk 0:00:04]} 49. Bc3 {[%clk 0:00:03]}  Ke7 {[%clk 0:00:04]} 50. Bd2 {[%clk 0:00:03]}  Bd4 {[%clk 0:00:03]} 51. Bb4+ {[%clk 0:00:03]}  Kf7 {[%clk 0:00:03]} 52. e6+ {[%clk 0:00:03]}  Kf6 {[%clk 0:00:03]} 53. f5 {[%clk 0:00:03]}  Bc5 {[%clk 0:00:03]} 54. Bxc5 {[%clk 0:00:03]}  Nxc5 {[%clk 0:00:02]} 55. d6 {[%clk 0:00:04]}  Nb7 {[%clk 0:00:02]} 56. d7 {[%clk 0:00:04]}  Ke7 {[%clk 0:00:02]} 57. Kf2 {[%clk 0:00:04]}  Kf6 {[%clk 0:00:01]} 58. Ke3 {[%clk 0:00:04]}  Ke7 {[%clk 0:00:01]} 59. Kf4 {[%clk 0:00:05]}  Nd6 {[%clk 0:00:02]} 60. Ke5 {[%clk 0:00:04]}  Nc4+ {[%clk 0:00:02]} 61. Kd4 {[%clk 0:00:05]}  Nd6 {[%clk 0:00:02]} 62. Ke5 {[%clk 0:00:05]}  Nc4+ {[%clk 0:00:03]} 63. Ke4 {[%clk 0:00:06]}  Na5 {[%clk 0:00:02]} 64. Kf4 {[%clk 0:00:05]}  Nc6 {[%clk 0:00:02]} 65. Kg5 {[%clk 0:00:06]}  Kd6 {[%clk 0:00:02]} 66. Kxh5 {[%clk 0:00:06]}  Ke5 {[%clk 0:00:01]} 67. Kxg4 {[%clk 0:00:06]}  Kf6 {[%clk 0:00:02]} 68. Kf4 {[%clk 0:00:06]}  Ke7 {[%clk 0:00:01]} 69. g4 {[%clk 0:00:07]}  Kf8 {[%clk 0:00:01]} 70. g5 {[%clk 0:00:08]}  Ke7 {[%clk 0:00:01]} 71. Ke4 {[%clk 0:00:08]}  Kd6 {[%clk 0:00:01]} 72. Kf4 {[%clk 0:00:07]}  Ke7 {[%clk 0:00:01]} 73. g6 {[%clk 0:00:08]}  Kf6 {[%clk 0:00:02]} 74. Ke4 {[%clk 0:00:08]}  Nd8 {[%clk 0:00:02]} 75. Kd5 {[%clk 0:00:08]}  Nb7 {[%clk 0:00:02]} 76. Kc6 {[%clk 0:00:09]}  Nd8+ {[%clk 0:00:02]} 77. Kc7 {[%clk 0:00:09]}  Ke7 {[%clk 0:00:03]} 78. f6+ {[%clk 0:00:10]}  Kxe6 {[%clk 0:00:03]} 79. Kxd8 {[%clk 0:00:10]} 1-0


[Site "https://www.chess.com"]